bitfinex/quotes_ETHUSD_20241030
["timestamp","ask_amount","ask_price","bid_price","bid_amount"]
[1730283994050,3.71956,2688.5,2688.2,0.3719]
[1730283994468,7.43923,2688.5,2688.2,0.3719]
[1730283994785,3.71969,2688.4,2688.2,0.3719]
[1730283996066,3.71982,2688.3,2688.2,0.3719]
[1730283996650,3.71982,2688.3,2688.0,0.3719]
[1730283996851,3.72037,2687.9,2687.3,3.72114]
[1730283997058,3.72066,2687.7,2687.4,0.8153]
[1730283997943,3.72066,2687.7,2687.4,1.1872]
[1730283998775,3.72093,2687.5,2687.3,0.3719]
[1730283998982,3.72093,2687.5,2687.2,0.1292543]
[1730283999169,7.44196,2687.5,2687.2,0.5011543]
[1730283999890,3.72093,2687.5,2687.2,0.5011543]
[1730284001244,3.72112,2687.4,2687.2,0.5011543]
[1730284002851,4.5405,2687.3,2687.2,0.1292543]
[1730284003052,5.0905,2687.3,2687.2,0.1292543]
[1730284003242,10.9785,2687.3,2687.2,0.1292543]
[1730284003449,12.448462,2687.3,2687.2,0.1292543]
[1730284004275,15.448462,2687.3,2687.2,0.1292543]
[1730284009099,14.629162,2687.3,2687.2,0.1292543]
[1730284009298,15.430962,2687.3,2687.2,0.1292543]
[1730284012993,15.430962,2687.3,2687.2,4.3e-06]
[1730284015979,15.8471561,2687.3,2687.2,4.3e-06]
[1730284017601,19.7621561,2687.3,2687.2,4.3e-06]
[1730284018304,15.430962,2687.3,2687.2,4.3e-06]
[1730284020100,11.880962,2687.3,2687.2,4.3e-06]
[1730284020403,11.079162,2687.3,2687.2,4.3e-06]
[1730284020602,9.6092,2687.3,2687.2,4.3e-06]
[1730284021466,1.54298251,2687.4,2687.2,0.7779043]
[1730284022869,1.54298251,2687.4,2687.2,1.1498043]
[1730284023066,1.54298251,2687.4,2687.2,1.63693173]
[1730284023428,1.54298251,2687.4,2687.3,0.7779]
[1730284023706,1.54298251,2687.4,2687.3,1.1498]
[1730284023878,1.54298251,2687.4,2687.3,4.871]
[1730284024286,1.54298251,2687.4,2687.3,1.1498]
[1730284025043,3.72072,2687.7,2687.3,1.1498]
[1730284025044,3.72093,2687.5,2687.3,1.1498]
[1730284026253,4.2712,2687.3,2687.2,4.3e-06]
[1730284027221,4.85371079,2687.3,2687.2,4.3e-06]
[1730284031460,4.85371079,2687.3,2687.0,0.64202434]
[1730284033604,1.13251079,2687.3,2687.0,0.64202434]
[1730284033895,1.13251079,2687.3,2687.0,1.01392434]
[1730284035195,0.58251079,2687.3,2687.0,1.01392434]
[1730284039676,0.58251079,2687.3,2687.0,4.73548434]
[1730284039958,0.58251079,2687.3,2687.1,3.72137]
[1730284040195,0.58251079,2687.3,2687.2,4.86194]
[1730284040489,0.58251079,2687.3,2687.2,0.7687]
[1730284042110,0.58251079,2687.3,2687.1,0.3719]
[1730284045909,0.58251079,2687.3,2687.2,3.72134]
[1730284046145,0.58251079,2687.3,2687.2,4.87324]
[1730284046346,0.58251079,2687.3,2687.2,5.732701]
[1730284046846,5.888,2687.8,2687.3,0.78]
[1730284047046,5.888,2687.8,2687.4,3.72095]
[1730284047233,5.888,2687.8,2687.5,0.78]
[1730284047234,0.58239802,2687.7,2687.5,0.78]
[1730284048554,0.58239802,2687.7,2687.5,1.1519]
[1730284049834,0.58239802,2687.7,2687.5,4.87282]
[1730284050174,0.58239802,2687.7,2687.6,4.87689]
[1730284050512,2.16,2688.0,2687.6,4.87689]
[1730284050769,2.16,2688.0,2687.7,4.09255]
[1730284051257,2.16,2688.0,2687.7,0.3719]
[1730284051772,5.88026,2688.0,2687.7,0.3719]
[1730284051937,5.88026,2688.0,2687.4,3.72106]
[1730284051938,3.72069,2687.7,2687.4,0.3719]
[1730284052273,3.72081,2687.6,2687.4,0.3719]
[1730284052473,3.72069,2687.7,2687.4,0.3719]
[1730284052643,4.90574965,2687.7,2687.4,0.3719]
[1730284052969,8.62648965,2687.7,2687.2,0.3719]
[1730284053139,3.72081,2687.6,2687.2,0.3719]
[1730284053348,8.62652965,2687.7,2687.2,0.3719]
[1730284053531,3.72101,2687.5,2687.2,0.3719]
[1730284053734,3.72106,2687.5,2687.2,0.3719]
[1730284053933,3.72111,2687.4,2687.1,0.3719]
[1730284058738,7.44226,2687.4,2687.1,0.3719]
[1730284058947,3.72111,2687.4,2687.1,0.3719]
[1730284060870,4.53920591,2687.4,2687.1,0.3719]
[1730284061441,4.53920591,2687.4,2686.9,3.72174]
[1730284061442,3.7215,2687.1,2686.9,0.3719]
[1730284061959,7.44309,2687.1,2686.9,0.3719]
[1730284062270,3.72162,2687.0,2686.9,0.3719]
[1730284062472,3.72191,2686.8,2686.6,0.3719]
[1730284063262,3.72203,2686.7,2686.6,0.3719]
[1730284063466,3.72203,2686.7,2686.4,0.3719]
[1730284063637,3.72225,2686.6,2686.4,0.3719]
[1730284063975,3.72231,2686.5,2686.4,0.3719]
[1730284064740,7.44445,2686.6,2686.4,0.3719]
[1730284065043,3.72217,2686.6,2686.4,0.3719]
[1730284065350,7.44447,2686.6,2686.4,0.3719]
[1730284065552,3.72231,2686.5,2686.4,0.3719]
[1730284065764,4.5410564,2686.6,2686.4,0.3719]
[1730284065934,7.44442,2686.6,2686.4,0.3719]
[1730284066138,3.72217,2686.6,2686.4,0.3719]
[1730284066664,7.44442,2686.6,2686.4,0.3719]
[1730284066875,4.27211,2686.7,2686.4,0.3719]
[1730284067171,0.799409,2686.6,2686.4,0.3719]
[1730284067483,3.72222,2686.6,2686.4,0.3719]
[1730284070977,4.27211,2686.7,2686.4,0.3719]
[1730284071177,3.72231,2686.5,2686.4,0.3719]
[1730284072474,3.72231,2686.5,2686.1,1.1462]
[1730284072774,3.72231,2686.5,2686.1,4.86906]
[1730284073176,3.72218,2686.6,2686.1,4.86906]
[1730284075577,3.72204,2686.7,2686.3,0.3719]
[1730284075780,0.372204,2686.6,2686.3,0.3719]
[1730284075977,4.094394,2686.6,2686.3,0.3719]
[1730284076478,3.72238,2686.5,2686.3,0.3719]
[1730284076689,3.72238,2686.5,2686.2,0.3719]
[1730284077146,4.094394,2686.6,2686.2,0.3719]
[1730284078383,0.4094394,2686.5,2686.2,0.3719]
[1730284079384,4.094394,2686.6,2686.2,0.3719]
[1730284079677,0.372204,2686.6,2686.2,0.3719]
[1730284079888,3.72215,2686.7,2686.2,0.3719]
[1730284080243,3.72215,2686.7,2686.2,4.09458]
[1730284081672,3.72196,2686.8,2686.4,0.3719]
[1730284083381,3.72172,2687.0,2686.6,1.1314]
[1730284083582,4.8398729,2687.0,2686.6,1.1314]
[1730284084002,3.72177,2686.9,2686.6,1.1314]
[1730284085707,4.8398729,2687.0,2686.6,1.1314]
[1730284086093,3.72172,2687.0,2686.6,1.1314]
[1730284087405,3.72185,2686.9,2686.6,1.1314]
[1730284088916,7.44345,2687.0,2686.6,1.1314]
[1730284089297,3.72156,2687.1,2686.6,4.85354]
[1730284089615,0.8888,2687.1,2686.6,4.85349]
[1730284089774,3.72118,2687.4,2686.9,4.85535]
[1730284090283,3.72123,2687.3,2686.9,1.1336]
[1730284090619,3.72144,2687.2,2686.9,1.1336]
[1730284090913,0.372118,2687.3,2686.5,3.72223]
[1730284090914,3.72162,2687.0,2686.6,0.3719]
[1730284091780,3.72158,2687.1,2686.6,0.3719]
[1730284092492,3.72158,2687.1,2686.6,4.09406]
[1730284092696,3.72158,2687.1,2686.6,0.3719]
[1730284093081,3.72158,2687.1,2686.6,4.09407]
[1730284094706,7.44316,2687.1,2686.6,4.09407]
[1730284095007,3.72167,2687.0,2686.6,0.3719]
[1730284095209,8.265866,2687.1,2686.6,4.09407]
[1730284095718,4.544286,2687.1,2686.6,4.09407]
[1730284096210,3.72158,2687.1,2686.8,0.3719]
[1730284096784,7.44316,2687.1,2686.8,0.3719]
[1730284097181,3.72165,2687.0,2686.8,0.3719]
[1730284097998,3.72158,2687.1,2686.8,0.3719]
[1730284098185,0.372158,2687.0,2686.6,0.3719]
[1730284098385,3.72179,2686.9,2686.6,0.3719]
[1730284098823,3.72158,2687.1,2686.8,0.3719]
[1730284099329,3.72162,2687.0,2686.8,0.3719]
[1730284099622,3.72176,2686.9,2686.8,0.3719]
[1730284099829,5.888,2687.8,2687.2,0.8134]
[1730284100029,0.07463117,2688.7,2687.7,0.8134]
[1730284100030,2.16,2688.0,2687.7,0.8134]
[1730284100277,5.88031,2688.0,2687.7,1.1853]
[1730284100440,0.64626046,2687.9,2687.7,1.1853]
[1730284100729,5.88031,2688.0,2687.7,1.1853]
[1730284103127,2.16,2688.0,2687.7,1.1853]
[1730284105044,5.88025,2688.0,2687.7,1.1853]
[1730284106139,3.72038,2687.9,2687.7,1.1853]
[1730284106559,3.72079,2687.6,2687.5,0.3719]
[1730284106770,3.72119,2687.4,2686.8,4.84869]
[1730284106971,3.72133,2687.3,2686.8,1.1269]
[1730284107114,3.72119,2687.4,2686.8,1.1269]
[1730284107453,3.72136,2687.2,2686.8,1.1269]
[1730284109654,3.72158,2687.1,2686.8,1.1269]
[1730284109827,3.72136,2687.2,2686.8,1.1269]
[1730284110034,3.72163,2687.0,2686.8,1.1269]
[1730284110629,7.44283,2687.2,2686.8,1.1269]
[1730284110863,3.72161,2687.1,2686.8,1.1269]
[1730284112673,3.72136,2687.2,2686.8,1.1269]
[1730284112674,3.72165,2687.0,2686.8,1.1269]
[1730284112980,3.72165,2687.0,2686.9,0.3723]
[1730284112981,4.465951,2687.0,2686.9,0.3723]
[1730284113132,3.72165,2687.0,2686.9,0.3723]
[1730284113465,3.72129,2687.3,2686.9,0.3723]
[1730284113932,3.72101,2687.5,2686.9,4.09403]
[1730284114333,7.44202,2687.5,2686.9,4.09403]
[1730284115037,3.72101,2687.5,2687.1,0.3723]
[1730284115542,7.44205,2687.5,2687.1,0.3723]
[1730284115781,3.72107,2687.4,2687.1,0.3723]
[1730284116271,3.72109,2687.4,2687.0,0.3723]
[1730284120488,3.72109,2687.4,2686.9,0.3723]
[1730284121782,5.354015,2687.5,2686.9,0.3723]
[1730284121987,3.72124,2687.3,2686.9,0.3723]
[1730284122662,3.72148,2687.1,2686.9,0.3723]
[1730284123991,3.72138,2687.2,2686.9,0.3723]
[1730284124152,7.44255,2687.3,2686.9,0.3723]
[1730284124665,3.72124,2687.3,2686.9,0.3723]
[1730284125677,7.44257,2687.3,2686.9,0.3723]
[1730284126186,3.72135,2687.2,2686.9,0.3723]
[1730284126493,3.72121,2687.3,2686.9,0.3723]
[1730284126987,3.72136,2687.2,2686.9,0.3723]
[1730284127193,3.72155,2687.1,2686.9,0.3723]
[1730284127486,3.72162,2687.0,2686.9,0.3723]
[1730284131184,3.72134,2687.2,2686.9,0.3723]
[1730284131371,7.44279,2687.2,2686.9,0.3723]
[1730284131759,3.72148,2687.1,2686.9,0.3723]
[1730284132160,3.72134,2687.2,2686.9,0.3723]
[1730284132584,7.44279,2687.2,2686.9,0.3723]
[1730284132765,3.72134,2687.2,2686.9,0.3723]
[1730284133559,7.4428,2687.2,2686.9,0.3723]
[1730284134299,3.72134,2687.2,2686.9,0.3723]
[1730284137088,7.44278,2687.2,2686.9,0.3723]
[1730284137278,4.170484,2687.2,2686.9,0.3723]
[1730284141009,6.72079,2687.6,2687.2,1.1331]
[1730284141160,3.0,2687.6,2687.2,1.1331]
[1730284143104,6.72081,2687.6,2687.2,1.1331]
[1730284143375,1.632946,2687.5,2687.2,1.1331]
[1730284144070,3.0,2687.6,2687.4,4.09329]
[1730284144275,2.16,2688.0,2687.6,3.72079]
[1730284144510,2.16,2688.0,2687.7,0.3723]
[1730284144810,3.72039,2687.9,2687.7,0.3723]
[1730284145428,3.72039,2687.9,2687.6,0.3723]
[1730284146214,5.88024,2688.0,2687.6,0.3723]
[1730284146516,2.16,2688.0,2687.6,4.09307]
[1730284147011,5.88024,2688.0,2687.6,4.09307]
[1730284147309,5.88024,2688.0,2687.6,0.3723]
[1730284147681,2.16,2688.0,2687.8,0.3723]
[1730284148109,5.88024,2688.0,2687.8,0.3723]
[1730284148312,2.16,2688.0,2687.8,0.3723]
[1730284149012,1.54298251,2688.4,2688.0,4.91196]
[1730284149220,1.54298251,2688.4,2688.1,3.72003]
[1730284149591,1.54298251,2688.4,2688.2,0.3723]
[1730284153917,1.54298251,2688.4,2688.1,0.3723]
[1730284154493,1.54298251,2688.4,2688.1,4.09239]
[1730284156613,1.54298251,2688.4,2688.1,0.3723]
[1730284157910,1.54298251,2688.4,2688.1,4.09238]
[1730284158735,5.888,2688.5,2688.1,4.09238]
[1730284158945,5.888,2688.5,2688.1,0.3723]
[1730284159396,5.888,2688.5,2688.1,1.24297457]
[1730284159724,3.71946,2688.6,2688.1,4.96299457]
[1730284160902,3.0,2688.7,2688.2,1.1229]
[1730284161143,0.58233854,2688.8,2688.3,3.71974]
[1730284161436,3.71954,2688.6,2688.3,0.3723]
[1730284161634,3.71944,2688.6,2688.3,0.3723]
[1730284162102,0.58233854,2688.8,2688.3,0.3723]
[1730284162297,3.71977,2688.4,2688.3,0.3723]
[1730284163540,3.71977,2688.4,2688.1,0.3723]
[1730284165139,3.71984,2688.3,2688.1,0.3723]
[1730284166214,0.58226636,2688.6,2688.2,4.9117]
[1730284166422,0.58226636,2688.6,2688.3,0.86347]
[1730284166754,0.58226636,2688.6,2688.3,0.3723]
[1730284167904,0.58226636,2688.6,2688.3,4.09206]
[1730284168151,0.58226636,2688.6,2688.4,0.3723]
[1730284168326,5.87907,2688.9,2688.4,0.3723]
[1730284168530,0.58220726,2688.6,2688.4,0.3723]
[1730284168730,0.58220726,2688.6,2688.4,0.87089898]
[1730284170361,0.58220726,2688.6,2688.3,0.3723]
[1730284171658,0.58220726,2688.6,2688.3,0.37073821]
[1730284175546,0.58220726,2688.6,2688.3,4.09053821]
[1730284176286,0.58220726,2688.6,2688.5,3.71954]
[1730284176493,0.58220726,2688.6,2688.5,4.47274]
[1730284176646,2.16,2688.9,2688.6,4.08855642]
[1730284176845,2.74215468,2688.9,2688.6,0.36917642]
[1730284177271,2.74215468,2688.9,2688.6,4.08856642]
[1730284177580,2.74215468,2688.9,2688.8,4.08830642]
[1730284178985,0.58215468,2688.9,2688.8,4.08830642]
[1730284179207,5.888,2689.3,2689.0,4.08789642]
[1730284179363,0.7698,2689.7,2689.2,3.71851]
[1730284179564,0.58208474,2689.4,2689.2,3.71851]
[1730284179765,0.7698,2689.7,2689.2,3.71851]
[1730284179998,1.218565,2689.7,2689.2,3.71851]
[1730284180199,3.71776,2689.8,2689.3,1.12927642]
[1730284180400,1.35732277,2689.9,2689.3,4.84764642]
[1730284180608,1.09628728,2689.8,2689.3,4.84764642]
[1730284180809,4.81406728,2689.8,2689.3,4.84764642]
[1730284181099,1.09628728,2689.8,2689.3,4.84764642]
[1730284181493,1.09628728,2689.8,2689.3,4.84763642]
[1730284181698,1.09628728,2689.8,2689.3,8.56597642]
[1730284182604,0.58202277,2689.9,2689.7,4.08702642]
[1730284182952,0.58202277,2689.9,2689.8,3.71774]
[1730284183112,0.58202277,2689.9,2689.8,4.08691642]
[1730284183272,3.70298251,2690.1,2689.8,4.08691642]
[1730284183697,3.70298251,2690.1,2689.1,0.769]
[1730284183698,0.7647,2690.0,2689.1,0.769]
[1730284183888,3.71801,2689.7,2689.1,4.48769]
[1730284184209,3.71804,2689.6,2689.1,0.769]
[1730284184415,7.43616,2689.6,2689.1,0.769]
[1730284184718,3.71804,2689.6,2689.2,0.3723]
[1730284184888,4.461656,2689.6,2689.2,0.3723]
[1730284185088,0.743616,2689.6,2689.2,0.3723]
[1730284185283,3.71789,2689.7,2689.2,0.3723]
[1730284185484,3.71789,2689.7,2689.2,4.09085]
[1730284186074,3.71789,2689.7,2689.2,0.3723]
[1730284186289,3.71809,2689.6,2689.2,0.3723]
[1730284186519,0.8286,2689.6,2689.2,0.3723]
[1730284186676,4.172809,2689.5,2689.2,0.3723]
[1730284188614,0.454649,2689.5,2689.2,0.3723]
[1730284188780,3.71803,2689.6,2689.2,0.3723]
[1730284189116,3.71789,2689.7,2689.2,4.09081]
[1730284189503,3.71804,2689.6,2689.2,4.09081]
[1730284189917,3.71816,2689.5,2689.2,0.3723]
[1730284192816,3.71798,2689.7,2689.2,0.3723]
[1730284192817,3.71803,2689.6,2689.2,0.3723]
[1730284194527,3.71818,2689.5,2689.2,0.3723]
[1730284196726,3.71843,2689.4,2689.2,0.3723]
[1730284197640,3.71818,2689.5,2689.2,0.3723]
[1730284198730,4.21710482,2689.7,2689.2,0.3723]
[1730284199645,3.71817,2689.5,2689.2,0.3723]
[1730284200215,4.51169748,2689.5,2689.2,0.3723]
[1730284200599,3.71834,2689.4,2689.2,0.3723]
[1730284200830,3.71857,2689.3,2689.2,0.3723]
[1730284201811,3.7186,2689.2,2689.0,0.3723]
[1730284203517,0.8314,2689.4,2689.0,0.3723]
[1730284203735,3.71844,2689.3,2689.0,0.3723]
[1730284204267,7.43701,2689.3,2689.0,0.3723]
[1730284205249,3.71844,2689.3,2689.0,0.3723]
[1730284205474,7.43699,2689.3,2689.0,0.3723]
[1730284205754,3.71858,2689.2,2689.0,0.3723]
[1730284206050,3.71842,2689.4,2689.0,0.3723]
[1730284206253,3.71846,2689.3,2689.0,0.3723]
[1730284208352,3.71859,2689.2,2689.0,0.3723]
[1730284208556,4.462291,2689.2,2689.0,0.3723]
[1730284208758,3.71859,2689.2,2689.0,0.3723]
[1730284211527,3.71871,2689.1,2689.0,0.3723]
[1730284213758,3.71894,2689.0,2688.4,3.71959]
[1730284213959,0.7916,2689.2,2688.3,0.7744]
[1730284214162,0.50344248,2689.5,2688.3,0.7744]
[1730284214163,3.7194,2688.6,2688.3,0.7744]
[1730284214462,5.888,2689.2,2688.5,3.71953]
[1730284214628,3.71887,2689.0,2688.5,3.71953]
[1730284214823,3.71874,2689.1,2688.6,4.87422]
[1730284215018,3.71874,2689.1,2688.6,1.22928443]
[1730284215242,3.71874,2689.1,2688.6,4.94861443]
[1730284215721,5.888,2689.2,2688.8,4.09138]
[1730284215925,5.888,2689.2,2688.9,0.7826]
[1730284216151,5.888,2689.2,2689.0,0.3723]
[1730284216548,4.98453482,2689.7,2689.0,0.3723]
[1730284216758,3.71816,2689.5,2689.0,4.09109]
[1730284217460,4.21657348,2689.6,2689.2,0.3723]
[1730284217768,3.71819,2689.5,2689.2,0.3723]
[1730284218467,3.71831,2689.4,2689.0,0.3723]
[1730284218971,3.71839,2689.4,2689.0,0.3723]
[1730284219133,3.71848,2689.3,2689.0,0.3723]
[1730284219468,3.71871,2689.1,2689.0,0.3723]
[1730284219623,0.447311,2689.1,2688.7,1.1473]
[1730284219964,3.71913,2688.8,2688.7,0.3723]
[1730284220323,3.71913,2688.8,2688.5,0.3723]
[1730284220636,3.71957,2688.5,2688.2,1.1818]
[1730284221380,3.71957,2688.5,2688.2,0.3723]
[1730284221381,3.71974,2688.4,2688.2,0.3723]
[1730284221528,0.371957,2688.4,2688.2,0.3723]
[1730284221728,4.4874,2688.6,2688.1,0.3723]
[1730284221962,3.71904,2688.9,2688.0,0.8095]
[1730284221963,3.71933,2688.7,2688.3,0.3723]
[1730284222748,3.71933,2688.7,2688.4,0.8166]
[1730284224875,3.71941,2688.6,2688.4,0.8166]
[1730284225175,3.71968,2688.4,2688.3,0.3723]
[1730284226049,3.71968,2688.4,2688.1,0.3723]
[1730284227431,4.53399,2688.6,2688.1,4.09239]
[1730284227635,3.71928,2688.7,2688.2,3.7942888]
[1730284227940,3.71928,2688.7,2688.2,4.6199888]
[1730284228141,3.71922,2688.8,2688.3,3.71976]
[1730284228335,5.87895,2689.0,2688.4,4.50946]
[1730284228677,5.87895,2689.0,2688.5,3.71947]
[1730284228972,5.87895,2689.0,2688.5,4.09177]
[1730284229266,5.87895,2689.0,2688.6,3.71939]
[1730284229474,5.87895,2689.0,2688.6,0.3723]
[1730284229766,3.71899,2688.9,2688.6,0.3723]
[1730284230433,5.87887,2689.0,2688.5,4.0918]
[1730284230659,9.59785,2689.0,2688.5,4.0918]
[1730284230838,5.87887,2689.0,2688.5,4.09182]
[1730284231667,9.59781,2689.0,2688.5,4.09182]
[1730284231895,5.87887,2689.0,2688.5,4.09182]
[1730284232066,9.59784,2689.0,2688.5,4.09182]
[1730284232259,5.87887,2689.0,2688.5,4.09182]
[1730284232459,9.59786,2689.0,2688.5,4.09182]
[1730284233088,3.71899,2688.9,2688.5,4.09182]
[1730284233601,3.71899,2688.9,2688.5,0.3723]
[1730284234600,3.71913,2688.8,2688.5,0.3723]
[1730284234898,3.71949,2688.6,2688.2,0.3723]
[1730284235198,3.71949,2688.6,2688.2,4.09225]
[1730284235530,4.52547,2688.7,2688.3,1.1458]
[1730284235687,5.0446947,2688.7,2688.3,1.1458]
[1730284236011,1.3254247,2688.7,2688.3,1.1458]
[1730284236191,3.71944,2688.6,2688.3,1.1458]
[1730284237194,3.71928,2688.7,2688.3,4.86562]
[1730284237497,3.71902,2688.9,2688.5,4.86528]
[1730284237710,3.71902,2688.9,2688.5,1.1458]
[1730284238891,3.71902,2688.9,2688.5,4.86531]
[1730284239581,3.71902,2688.9,2688.5,1.1458]
[1730284241115,3.71907,2688.9,2688.5,1.1458]
[1730284241712,10.37487,2689.0,2688.6,3.71939]
[1730284242213,3.71906,2688.9,2688.5,1.1458]
[1730284243479,6.65593,2689.0,2688.5,4.86524]
[1730284243480,5.87886,2689.0,2688.5,4.86524]
[1730284244481,2.16,2689.0,2688.9,1.1518]
[1730284244681,2.16,2689.0,2688.9,4.87079]
[1730284246525,2.7420396,2689.0,2688.9,4.87079]
[1730284246937,0.5820396,2689.0,2688.9,4.94516227]
[1730284247233,3.7181,2689.6,2689.3,0.8209]
[1730284248825,3.7183,2689.4,2689.3,0.8209]
[1730284248998,7.43673,2689.4,2689.2,0.3723]
[1730284249336,3.71843,2689.3,2689.2,0.3723]
[1730284249814,3.71876,2689.1,2688.9,0.3723]
[1730284252041,3.71885,2689.0,2688.9,0.3723]
[1730284252604,3.71921,2688.8,2688.6,0.3723]
[1730284253117,3.71926,2688.7,2688.6,0.3723]
[1730284253442,3.71914,2688.8,2688.6,0.3723]
[1730284253738,7.43836,2688.8,2688.6,0.3723]
[1730284253938,3.71914,2688.8,2688.6,0.3723]
[1730284254142,3.71914,2688.8,2688.3,1.1977]
[1730284254143,3.71949,2688.6,2688.3,1.1977]
[1730284254371,4.54177,2688.7,2688.3,1.1977]
[1730284254644,3.71942,2688.6,2688.3,1.1977]
[1730284255621,3.71955,2688.5,2688.3,1.1977]
[1730284256350,3.71955,2688.5,2688.2,0.3723]
[1730284256510,3.71963,2688.5,2688.2,0.3723]
[1730284258021,3.71981,2688.4,2688.3,0.3723]
[1730284258244,3.71981,2688.4,2688.0,0.3723]
[1730284258545,3.71993,2688.3,2688.0,0.3723]
[1730284258719,3.71996,2688.2,2688.0,0.3723]
[1730284258919,3.72009,2688.1,2688.0,0.3723]
[1730284259155,7.44,2688.2,2687.9,0.7806]
[1730284259311,3.71996,2688.2,2687.9,0.7806]
[1730284259653,4.173336,2688.2,2687.9,0.7806]
[1730284259811,3.72033,2688.0,2687.8,0.3723]
[1730284260214,7.44067,2688.0,2687.8,0.3723]
[1730284260521,4.173426,2688.2,2687.8,0.3723]
[1730284260724,3.72018,2688.1,2687.8,0.3723]
[1730284261814,3.72033,2688.0,2687.8,0.3723]
[1730284262438,3.72018,2688.1,2687.8,0.3723]
[1730284263015,3.71959,2688.5,2687.8,4.16718674]
[1730284263016,3.71996,2688.2,2687.8,4.16718674]
[1730284263449,3.7197,2688.4,2688.0,0.7901]
[1730284263815,3.7197,2688.4,2688.0,4.51031]
[1730284264155,3.7197,2688.4,2688.0,0.7901]
[1730284264315,3.7197,2688.4,2688.0,4.51033]
[1730284264915,3.71984,2688.3,2688.0,0.7901]
[1730284265920,3.72007,2688.2,2687.8,1.193]
[1730284266842,3.72017,2688.1,2687.8,1.193]
[1730284267269,3.72026,2688.0,2687.8,1.193]
[1730284267548,3.72026,2688.0,2687.5,3.72083]
[1730284267549,3.72026,2688.0,2687.9,0.3723]
[1730284267756,4.48716,2688.0,2687.9,0.3723]
[1730284267940,4.540957,2688.0,2687.9,0.3723]
[1730284268261,3.72023,2688.0,2687.9,0.3723]
[1730284268432,3.72023,2688.0,2687.7,0.3723]
[1730284269358,7.44056,2688.0,2687.7,0.3723]
[1730284269542,3.72023,2688.0,2687.7,0.3723]
[1730284269727,7.44059,2688.0,2687.7,0.3723]
[1730284270340,3.72023,2688.0,2687.7,0.3723]
[1730284271230,7.44055,2688.0,2687.7,0.3723]
[1730284271437,3.72023,2688.0,2687.7,0.3723]
[1730284272334,3.7204,2687.9,2687.7,0.3723]
[1730284273953,4.168943,2688.0,2687.6,0.3723]
[1730284273954,0.448713,2688.0,2687.6,0.3723]
[1730284274134,3.72053,2687.8,2687.6,0.3723]
[1730284274936,3.72053,2687.8,2687.5,0.3723]
[1730284275223,7.44115,2687.8,2687.5,0.3723]
[1730284275451,3.72053,2687.8,2687.5,0.3723]
[1730284275652,7.44112,2687.8,2687.5,0.3723]
[1730284275840,3.72079,2687.6,2687.5,0.3723]
[1730284276157,0.744112,2687.8,2687.5,0.3723]
[1730284276158,4.464682,2687.8,2687.5,0.3723]
[1730284276365,3.0,2687.9,2687.5,4.09318]
[1730284276665,6.72039,2687.9,2687.5,4.09318]
[1730284276872,6.72039,2687.9,2687.5,0.3723]
[1730284277080,3.72039,2687.9,2687.5,0.3723]
[1730284279879,3.72037,2687.9,2687.5,0.3723]
[1730284280250,3.72037,2687.9,2687.5,4.09322]
[1730284280453,3.72037,2687.9,2687.5,0.3723]
[1730284280757,3.72032,2688.0,2687.5,0.3723]
[1730284280965,3.72037,2687.9,2687.5,0.3723]
[1730284281581,4.977192,2688.0,2687.5,0.3723]
[1730284281739,3.72037,2687.9,2687.5,0.3723]
[1730284282565,3.72051,2687.8,2687.5,0.3723]
[1730284283875,3.7204,2687.9,2687.5,4.09321]
[1730284284046,3.72027,2688.0,2687.7,0.3723]
[1730284284252,3.7204,2687.9,2687.7,0.3723]
[1730284285181,3.7204,2687.9,2687.6,0.3723]
[1730284288176,12.56845,2688.2,2687.6,0.3723]
[1730284288385,1.18484,2688.1,2687.6,4.16744831]
[1730284288688,3.72024,2688.0,2687.6,4.09304]
[1730284290285,3.72011,2688.1,2687.7,4.09291]
[1730284290446,3.72011,2688.1,2687.7,4.86861]
[1730284292662,7.44032,2688.1,2687.7,1.148]
[1730284292862,3.72029,2688.0,2687.6,0.3723]
[1730284293058,3.72054,2687.8,2687.6,0.3723]
[1730284293768,3.72065,2687.7,2687.6,0.3723]
[1730284293943,3.72088,2687.6,2687.4,0.3723]
[1730284294147,0.454355,2687.7,2687.4,0.3723]
[1730284294447,3.72079,2687.6,2687.4,0.3723]
[1730284296182,3.72079,2687.6,2687.2,0.3723]
[1730284297287,7.44165,2687.6,2687.2,0.3723]
[1730284297452,3.72107,2687.4,2687.2,0.3723]
[1730284297648,3.72081,2687.6,2687.2,0.3723]
[1730284297962,3.72081,2687.6,2687.2,4.09355]
[1730284298657,3.72059,2687.8,2687.2,4.09355]
[1730284298860,3.72066,2687.7,2687.2,7.81478]
[1730284299059,3.72066,2687.7,2687.3,0.0744193]
[1730284299260,0.8229,2687.9,2687.5,0.7724]
[1730284299586,3.72011,2688.1,2687.6,0.3723]
[1730284299898,3.72011,2688.1,2687.7,0.3723]
[1730284300481,4.388471,2688.1,2687.7,0.3723]
[1730284300865,3.72023,2688.0,2687.6,0.3723]
[1730284301259,3.72044,2687.9,2687.6,0.3723]
[1730284302069,3.72024,2688.0,2687.6,0.3723]
[1730284302857,3.7201,2688.1,2687.8,0.3723]
[1730284304467,7.44029,2688.1,2687.6,4.09306]
[1730284305554,3.7201,2688.1,2687.6,4.09306]
[1730284305754,7.44032,2688.1,2687.6,0.3723]
[1730284305959,3.72035,2688.0,2687.6,0.3723]
[1730284306903,3.72032,2688.0,2687.6,0.3723]
[1730284307087,2.16,2688.2,2687.5,3.72093]
[1730284307290,2.16,2688.2,2688.1,4.86779]
[1730284307472,2.16,2688.2,2688.1,5.72659]